[Event "CCT Julius Baer-D2 2024"]
[Site "Online"]
[Date "2024.09.28"]
[Round "2"]
[White "Martinez Alcantara, Jose Eduardo"]
[Black "Lazavik, Denis"]
[Result "1/2-1/2"]
[ECO "C55"]
[WhiteElo "2607"]
[BlackElo "2578"]
[Annotator "ChessBase"]
[PlyCount "151"]
[EventDate "2024.09.25"]
[EventType "swiss"]
[EventCountry "NET"]
[SourceTitle "playchess.com"]
[Source "ChessBase"]
[SourceQuality "1"]
[TimeControl "600+2"]

1. e4 {[%emt 0:00:05]} e5 {[%emt 0:00:03]} 2. Nf3 {[%emt 0:00:02]} Nc6 {[%emt 0:00:01]} 3. Bc4 {[%emt 0:00:00]} Nf6 {[%emt 0:00:04]} 4. d3 {[%emt 0:00:01]} Be7 {[%emt 0:00:02]} 5. Nc3 {[%emt 0:00:02]} O-O {[%emt 0:00:03]} 6. O-O {[%emt 0:00:01]} d6 {[%emt 0:00:01]} 7. h3 {[%emt 0:00:03]} Na5 {[%emt 0:00:05]} 8. a4 {[%emt 0:00:19]} Nxc4 {[%emt 0:00:04]} 9. dxc4 {[%emt 0:00:00]} a5 {[%emt 0:00:17]} 10. c5 {[%emt 0:00:15]} h6 {[%emt 0:00:33]} 11. cxd6 {[%emt 0:00:02]} Bxd6 {[%emt 0:00:02]} 12. Qe2 {[%emt 0:00:06]} c6 {[%emt 0:00:06]} 13. Nd2 {[%emt 0:00:02]} Qc7 {[%emt 0:01:28]} 14. Rd1 {[%emt 0:00:09]} Be6 {[%emt 0:00:03]} 15. Nf1 {[%emt 0:00:08]} Rfd8 {[%emt 0:00:08]} 16. Be3 {[%emt 0:00:03]} Bb4 {[%emt 0:00:07]} 17. Qf3 {[%emt 0:00:08]} Rxd1 {[%emt 0:00:26]} 18. Nxd1 {[%emt 0:00:16]} Nh7 {[%emt 0:00:34]} 19. Ng3 {[%emt 0:00:04]} Rd8 {[%emt 0:00:19]} 20. Qe2 {[%emt 0:00:18]} Qe7 {[%emt 0:00:45]} 21. b3 {[%emt 0:00:08]} Qh4 {[%emt 0:00:17]} 22. c3 {[%emt 0:01:30]} Bf8 {[%emt 0:00:24]} 23. Bb6 {[%emt 0:00:19]} Rd7 {[%emt 0:00:02]} 24. Ne3 {[%emt 0:00:06]} Bxb3 {[%emt 0:01:22]} 25. Bxa5 {[%emt 0:00:57]} Be6 {[%emt 0:00:10]} 26. Bb4 {[%emt 0:00:06]} Bxb4 {[%emt 0:00:41]} 27. cxb4 {[%emt 0:00:00]} Ng5 {[%emt 0:00:00]} 28. Rd1 {[%emt 0:00:46]} Rxd1+ {[%emt 0:00:58]} 29. Nxd1 {[%emt 0:00:00]} Nh7 {[%emt 0:00:16]} 30. Qe3 {[%emt 0:00:20]} Qd8 {[%emt 0:00:04]} 31. Nb2 {[%emt 0:00:05]} Nf6 {[%emt 0:00:17]} 32. Ne2 {[%emt 0:00:06]} Nd7 {[%emt 0:00:08]} 33. Nc3 {[%emt 0:00:19]} c5 {[%emt 0:00:23]} 34. b5 {[%emt 0:01:37]} Qa5 {[%emt 0:00:02]} 35. Nd5 {[%emt 0:00:01]} Bxd5 {[%emt 0:00:21]} 36. exd5 {[%emt 0:00:00]} Qb4 {[%emt 0:00:01]} 37. Qe2 {[%emt 0:00:01]} b6 {[%emt 0:00:25]} 38. d6 {[%emt 0:00:08]} Qd4 {[%emt 0:00:09]} 39. Nc4 {[%emt 0:01:30]} e4 {[%emt 0:00:01]} 40. Kh2 {[%emt 0:00:42]} g6 {[%emt 0:00:01]} 41. g3 {[%emt 0:00:03]} Kg7 {[%emt 0:00:01]} 42. Kg2 {[%emt 0:00:02]} f5 {[%emt 0:00:01]} 43. a5 {[%emt 0:00:10]} bxa5 {[%emt 0:00:01]} 44. b6 {[%emt 0:00:00]} a4 {[%emt 0:00:02]} 45. b7 {[%emt 0:00:01]} a3 {[%emt 0:00:05]} 46. Nxa3 {[%emt 0:00:08]} Qxd6 {[%emt 0:00:00]} 47. Qb2+ {[%emt 0:00:03]} Kf7 {[%emt 0:00:01]} 48. Nc4 {[%emt 0:00:01]} Qd5 {[%emt 0:00:05]} 49. Ne3 {[%emt 0:00:20]} Qd6 {[%emt 0:00:02]} 50. Qh8 {[%emt 0:00:02]} h5 {[%emt 0:00:02]} 51. Qh7+ {[%emt 0:00:03]} Ke8 {[%emt 0:00:01]} 52. Nc4 {[%emt 0:00:03]} Qd5 {[%emt 0:00:02]} 53. Qxd7+ {[%emt 0:00:03]} Qxd7 {[%emt 0:00:04]} 54. b8=Q+ {[%emt 0:00:02]} Ke7 {[%emt 0:00:00]} 55. Qe5+ {[%emt 0:00:01]} Qe6 {[%emt 0:00:03]} 56. Qxc5+ {[%emt 0:00:01]} Kf6 {[%emt 0:00:00]} 57. Qf8+ {[%emt 0:00:01]} Qf7 {[%emt 0:00:02]} 58. Qd6+ {[%emt 0:00:03]} Qe6 {[%emt 0:00:02]} 59. Qd4+ {[%emt 0:00:02]} Ke7 {[%emt 0:00:01]} 60. h4 {[%emt 0:00:01]} Qf6 {[%emt 0:00:02]} 61. Qc5+ {[%emt 0:00:01]} Kf7 {[%emt 0:00:01]} 62. Ne5+ {[%emt 0:00:03]} Ke6 {[%emt 0:00:02]} 63. Nc6 {[%emt 0:00:02]} Kd7 {[%emt 0:00:04]} 64. Nd4 {[%emt 0:00:01]} Qd6 {[%emt 0:00:01]} 65. Qc4 {[%emt 0:00:01]} Ke7 {[%emt 0:00:02]} 66. Ne2 {[%emt 0:00:01]} Qd3 {[%emt 0:00:04]} 67. Qxd3 {[%emt 0:00:04]} exd3 {[%emt 0:00:00]} 68. Nc3 {[%emt 0:00:00]} Kf6 {[%emt 0:00:05]} 69. Kf3 {[%emt 0:00:01]} g5 {[%emt 0:00:00]} 70. Ke3 {[%emt 0:00:11]} f4+ {[%emt 0:00:01]} 71. Kxd3 {[%emt 0:00:01]} fxg3 {[%emt 0:00:01]} 72. fxg3 {[%emt 0:00:03]} gxh4 {[%emt 0:00:00]} 73. gxh4 {[%emt 0:00:01]} Kf5 {[%emt 0:00:01]} 74. Ne4 {[%emt 0:00:02]} Kg4 {[%emt 0:00:01]} 75. Nf6+ {[%emt 0:00:01]} Kxh4 {[%emt 0:00:00]} 76. Nxh5 {[%emt 0:00:00]} 1/2-1/2

[Event "CCT Julius Baer-D2 2024"]
[Site "Online"]
[Date "2024.09.28"]
[Round "2"]
[White "Martinez Alcantara, Jose Eduardo"]
[Black "Lazavik, Denis"]
[Result "0-1"]
[ECO "C47"]
[WhiteElo "2607"]
[BlackElo "2578"]
[Annotator "TA"]
[PlyCount "98"]
[EventDate "2024.09.25"]
[EventType "swiss"]
[EventCountry "NET"]
[SourceTitle "playchess.com"]
[Source "ChessBase"]
[SourceQuality "1"]
[TimeControl "600+2"]

{[%evp 17,98,0,0,0,0,0,0,0,10,9,17,10,36,0,19,15,19,8,13,-6,-10,-12,-5,-5,-6,-22,-31,-30,-16,-29,-36,-32,-24,-45,-51,-48,-34,-35,-12,-18,-6,-17,0,-6,-8,-9,0,0,0,0,-3,-400,-386,-430,-194,-301,-301,-301,-296,-460,-181,-181,-181,-181,-181,-202,-206,-1432,-1261,-1312,-767,-1141,-1061,-1047,-457,-6311,-2333,-29983,-29983,-29984,-29985,-29986,-29987]} 1. e4 {[%emt 0:00:03]} e5 {[%emt 0:00:07]} 2. Nf3 {[%emt 0:00:01]} Nc6 {[%emt 0:00:01]} 3. Nc3 {[%emt 0:00:01]} Nf6 {[%emt 0:00:01]} 4. d4 {[%emt 0:00:00]} exd4 {[%emt 0:00:01]} 5. Nxd4 {[%emt 0:00:00]} Bb4 {[%emt 0:00:00]} 6. Nxc6 {[%emt 0:00:01]} bxc6 {[%emt 0:00:00]} 7. Bd3 {[%emt 0:00:00]} O-O {[%emt 0:00:01]} 8. O-O {[%emt 0:00:01]} d5 {[%emt 0:00:01]} 9. exd5 {[%emt 0:00:00]} cxd5 {[%emt 0:00:00]} 10. h3 {[%emt 0:00:01] Prevents Bg4.} c6 {[%emt 0:00:05]} 11. Qf3 {[%emt 0:00:01]} Bd6 {[%emt 0:00:01]} 12. Bf4 {[%emt 0:00:01] The position is equal.} Rb8 {[%emt 0:00:07]} 13. b3 {[%emt 0:00:01]} Qc7 {[%emt 0:00:03]} 14. Ne2 {[%emt 0:00:01]} Re8 {[%emt 0:00:09]} 15. Rad1 {[%emt 0:00:06]} Bd7 {[%emt 0:00:19]} 16. c4 {[%emt 0:00:04]} Bxf4 {[%emt 0:00:15]} 17. Nxf4 {[%emt 0:00:03]} d4 {[%emt 0:00:04]} 18. Nh5 {[%emt 0:01:25]} Nxh5 {[%emt 0:00:13]} 19. Qxh5 {[%emt 0:00:00]} g6 {[%emt 0:00:00]} 20. Qc5 {[%emt 0:00:02]} Qb6 {[%emt 0:00:06]} 21. Qg5 {[%emt 0:00:17]} c5 {[%emt 0:00:11]} 22. Rfe1 {[%emt 0:00:01]} Qd6 {[%emt 0:00:09]} 23. Qd5 {[%emt 0:00:46]} Qc7 {[%emt 0:01:04]} 24. Qg5 {[%emt 0:00:05]} Kg7 {[%emt 0:00:11]} 25. Qd2 {[%emt 0:00:12]} a5 {[%emt 0:00:28]} 26. Rxe8 {[%emt 0:00:31]} Rxe8 {[%emt 0:00:03]} 27. Re1 {[%emt 0:00:00]} Re6 {[%emt 0:00:42]} (27... Rb8 {feels hotter.} 28. Qg5 Be6 29. h4 f6) 28. Rxe6 {[%emt 0:00:05]} Bxe6 $11 {[%emt 0:00:00][%mdl 4096] Endgame. KQB-KQB} 29. Qe1 {[%emt 0:00:13]} Kf6 {[%emt 0:00:25]} 30. h4 {[%emt 0:00:13]} h5 {[%emt 0:00:40]} 31. Qd2 {[%emt 0:00:19]} Ke7 {[%emt 0:00:27]} 32. Qg5+ {[%emt 0:00:05]} Kd7 {[%emt 0:00:01]} 33. f4 {[%emt 0:00:30]} Qd6 {[%emt 0:01:02]} 34. g3 $2 {[%emt 0:01:51][%mdl 8192] Loses the game.} (34. Qf6 $11 {and White stays safe.}) 34... Bg4 $19 {[%emt 0:00:25]} 35. Kh2 {[%emt 0:00:35]} Ke8 {[%emt 0:01:28]} (35... Qc6 $142 36. Qe5 Qf3) 36. Qh6 {[%emt 0:01:48]} (36. a3 $142) 36... Qf6 {[%emt 0:00:08]} 37. Qh7 {[%emt 0:00:31]} Kf8 {[%emt 0:00:32] Prevents Qg8+.} 38. Kg2 {[%emt 0:00:22]} (38. a3 $142) 38... Qg7 $2 {[%emt 0:00:57]} (38... Qc6+ 39. Kh2 Qf3 40. Qh8+ Ke7 41. Qe5+ Kd7) 39. Qxg7+ {[%emt 0:00:01]} Kxg7 {[%emt 0:00:00] KB-KB} 40. Kf2 {[%emt 0:00:00]} Kf6 {[%emt 0:00:01] Threatens to win with ...Bf5.} 41. Ke1 {[%emt 0:00:14] [#]} Bf5 $1 {[%emt 0:00:16]} 42. Kd2 {[%emt 0:00:01]} (42. Be2 Bb1 43. Kd2) 42... Bxd3 {[%emt 0:00:32]} 43. Kxd3 {[%emt 0:00:00] KP-KP} Ke6 {[%emt 0:00:00]} 44. Ke4 {[%emt 0:00:23]} Kd6 {[%emt 0:00:02][%cal Oa5a4]} 45. Kd3 {[%emt 0:00:10]} Kc6 {[%emt 0:00:01]} (45... Kc7 $142 {[%cal Oa5a4] Hoping for ...a4!} 46. a4 Kd6) 46. Ke4 {[%emt 0:00:03] [#]} (46. Kc2 $142) 46... a4 $1 {[%emt 0:00:08][%mdl 512]} 47. b4 {[%emt 0:00:02]} (47. f5 gxf5+) 47... cxb4 {[%emt 0:00:01] Black mates.} 48. Kxd4 {[%emt 0:00:00]} a3 {[%emt 0:00:02]} 49. Kd3 {[%emt 0:00:27] [#]} b3 $1 {[%emt 0:00:01][%mdl 512] Weighted Error Value: White=0.66/Black=0.37.  Loses game:     	White=1     	---        Mistake:       	White=3     	Black=2      Inaccurate:     	White=2     	Black=1      OK:         	White=12    	Black=10     Best:        	White=1     	Black=2      Strong:       	---       	Black=1} 0-1

[Event "CCT Julius Baer-D2 2024"]
[Site "Online"]
[Date "2024.09.28"]
[Round "2"]
[White "Daneshvar, Bardiya"]
[Black "Sargsyan, Shant"]
[Result "1/2-1/2"]
[ECO "C54"]
[WhiteElo "2598"]
[BlackElo "2649"]
[Annotator "TA"]
[PlyCount "89"]
[EventDate "2024.09.25"]
[EventType "swiss"]
[EventCountry "NET"]
[SourceTitle "playchess.com"]
[Source "ChessBase"]
[SourceQuality "1"]
[TimeControl "600+2"]

{[%evp 17,89,8,18,6,17,1,8,0,18,20,15,0,0,0,25,18,22,11,16,11,21,15,37,36,38,0,0,0,0,0,0,-15,0,0,0,-53,-36,-28,0,0,0,0,0,0,0,-138,-115,-136,-139,-143,-143,-150,-150,-175,0,0,0,0,0,0,0,0,0,0,0,0,0,0,0,0,0,0,0,0]} 1. e4 {[%emt 0:00:02]} e5 {[%emt 0:00:03]} 2. Nf3 {[%emt 0:00:01]} Nc6 {[%emt 0:00:00]} 3. Bc4 {[%emt 0:00:01]} Bc5 {[%emt 0:00:01]} 4. c3 {[%emt 0:00:00]} Nf6 {[%emt 0:00:01]} 5. d4 {[%emt 0:00:00]} exd4 {[%emt 0:00:02]} 6. e5 {[%emt 0:00:01]} d5 {[%emt 0:00:04]} 7. Bb5 {[%emt 0:00:00]} Ne4 {[%emt 0:00:04]} 8. cxd4 {[%emt 0:00:01]} Bb6 {[%emt 0:00:01]} 9. Nc3 {[%emt 0:00:01]} O-O {[%emt 0:00:02]} 10. Be3 {[%emt 0:00:00]} Bg4 {[%emt 0:00:04]} 11. h3 {[%emt 0:00:06]} Bh5 {[%emt 0:00:01][%cal Bg4h5,Bh5g6,Bg6d3][%mdl 32]} 12. Qc2 {[%emt 0:00:04]} Bg6 {[%emt 0:00:38] Und ...Nxc3 würde nun gewinnen.} 13. Qb3 {[%emt 0:00:03]} Ne7 {[%emt 0:00:14]} 14. O-O {[%emt 0:00:02]} c6 {[%emt 0:00:12]} 15. Bd3 {[%emt 0:00:03]} Nd2 {[%emt 0:00:02]} 16. Nxd2 {[%emt 0:00:02]} Bxd3 {[%emt 0:00:01]} 17. Rfe1 {[%emt 0:00:05][%cal Oc3d5]} Bg6 {[%emt 0:00:15]} 18. Na4 {[%emt 0:00:07]} Nf5 {[%emt 0:00:03]} 19. Nxb6 {[%emt 0:00:14]} Qxb6 {[%emt 0:00:04]} 20. Qc3 {[%emt 0:00:01]} f6 {[%emt 0:00:14]} 21. f4 {[%emt 0:00:26]} fxe5 {[%emt 0:00:10]} 22. fxe5 {[%emt 0:00:00]} Nxe3 {[%emt 0:00:07]} 23. Rxe3 {[%emt 0:00:00]} Rf4 {[%emt 0:00:03]} 24. Nf3 {[%emt 0:00:37]} Raf8 {[%emt 0:00:15]} 25. Rae1 {[%emt 0:00:11]} Bh5 {[%emt 0:00:37]} 26. g4 {[%emt 0:00:39]} (26. Rf1 $11) 26... Bg6 {[%emt 0:00:13]} (26... Bf7 {vereinfacht} 27. Qb3 Bg6 28. Qxb6 axb6 29. e6 Re8) 27. e6 {[%emt 0:00:20]} Be4 {[%emt 0:00:49]} (27... Re8 {vereinfacht} 28. Re5 Re7 29. R1e2 h6) 28. Nd2 {[%emt 0:00:34] Aktives Gegenspiel!} Qc7 {[%emt 0:00:05]} 29. Nxe4 {[%emt 0:01:40]} dxe4 {[%emt 0:00:00]} 30. Qc4 {[%emt 0:00:17]} (30. Rxe4 $2 Rf3 31. Qd2 Rg3+ (31... Rxh3 32. R1e3 $11) 32. Kh1 Rxh3+ 33. Kg1 Qg3+ 34. Qg2 Qh4 $19) 30... b5 {[%emt 0:00:04]} 31. Qc5 {[%emt 0:00:12]} (31. Qb3 $11 Kh8 32. Qc2 (32. Rxe4 $2 Rf3 $19)) 31... Rf3 $1 $17 {[%emt 0:00:31]} (31... Rf2 $6 32. Qe5 Qxe5 33. dxe5 Rxb2 34. Ra3 $11 (34. Rxe4 Re8 $17)) 32. Qe5 {[%emt 0:01:23]} (32. Rxe4 $2 {wird mattgesetzt.} Qg3+ (32... Rxh3 33. Re5 $11) 33. Kh1 Qxh3+ 34. Kg1 Rg3#) 32... Qxe5 {[%emt 0:00:15]} 33. dxe5 {[%emt 0:00:00]} Rxe3 {[%emt 0:00:31]} 34. Rxe3 {[%emt 0:00:03][%mdl 4096] Endspiel. [#] KR-KR} Rf4 {[%emt 0:00:11]} 35. Ra3 {[%emt 0:01:00] [#]} Kf8 $2 {[%emt 0:00:37]} (35... g5 $1 $19 {Droht stark ...Kf8.} 36. Kg2 (36. Rxa7 $2 {zu gefräßig.} e3 $19) 36... Kf8 37. Rxa7 e3) 36. Rxa7 $11 {[%emt 0:00:07] Die Stellung ist ausgeglichen.} e3 {[%emt 0:00:30]} 37. Rf7+ $1 {[%emt 0:00:15]} Rxf7 {[%emt 0:00:04]} 38. exf7 {[%emt 0:00:00]} Kxf7 {[%emt 0:00:02] Weiss muss nun ...Ke6 beachten. KP-KP} 39. Kf1 {[%emt 0:00:18]} Ke6 {[%emt 0:00:02]} 40. Ke2 {[%emt 0:00:00]} Kxe5 {[%emt 0:00:01] ...Ke4 ist eine echte Drohung.} 41. Kxe3 {[%emt 0:00:01]} g5 {[%emt 0:00:33]} 42. a3 {[%emt 0:00:17]} Kd5 {[%emt 0:00:46] Und jetzt ...Kc4 wäre schön.} 43. Kd3 {[%emt 0:00:22]} c5 {[%emt 0:01:11]} 44. b3 {[%emt 0:00:02]} Kd6 {[%emt 0:00:16]} 45. Kc3 {[%emt 0:01:02] Gewichteter Fehlerwert: Weiß=0.13 (sehr präzise) /Schwarz=0.10 (sehr präzise) .  Gewinn verpasst:   	---       	Schwarz=1     Fehler:       	Weiß=2     	---        Ungenau:       	Weiß=1     	Schwarz=1     OK:         	Weiß=12    	Schwarz=12    Bester:       	Weiß=3     	Schwarz=2     Stark:        	Weiß=1     	Schwarz=1} 1/2-1/2

[Event "CCT Julius Baer-D2 2024"]
[Site "Online"]
[Date "2024.09.28"]
[Round "2"]
[White "Lazavik, Denis"]
[Black "Martinez Alcantara, Jose Eduardo"]
[Result "0-1"]
[ECO "D24"]
[WhiteElo "2578"]
[BlackElo "2607"]
[Annotator "RC"]
[PlyCount "72"]
[EventDate "2024.09.25"]
[EventType "swiss"]
[EventCountry "NET"]
[SourceTitle "playchess.com"]
[Source "ChessBase"]
[SourceQuality "1"]
[TimeControl "600+2"]

1. d4 {[%emt 0:00:02]} Nf6 {[%emt 0:00:05]} 2. c4 {[%emt 0:00:01]} e6 {[%emt 0:00:00]} 3. Nf3 {[%emt 0:00:01]} d5 {[%emt 0:00:01]} 4. Nc3 {[%emt 0:00:01]} dxc4 {[%emt 0:00:01]} 5. e4 {[%emt 0:00:02]} b5 {[%emt 0:00:00]} 6. e5 {[%emt 0:00:02]} Nd5 {[%emt 0:00:01]} 7. Nxb5 {[%emt 0:00:00]} Nb6 {[%emt 0:00:00]} 8. Be2 {[%emt 0:00:02]} Nc6 {[%emt 0:00:02]} 9. O-O {[%emt 0:00:01]} Be7 {[%emt 0:00:01]} 10. Rb1 {[%emt 0:00:02]} O-O {[%emt 0:00:06]} 11. b3 {[%emt 0:00:02]} cxb3 {[%emt 0:00:05]} 12. Rxb3 {[%emt 0:00:01]} Bb7 {[%emt 0:00:12]} 13. Bd3 {[%emt 0:00:49]} h6 {[%emt 0:00:49]} 14. Bb1 {[%emt 0:00:55]} Nb4 {[%emt 0:00:12]} 15. a3 {[%emt 0:00:40]} Ba6 {[%emt 0:00:02]} 16. axb4 {[%emt 0:00:23]} Bxb5 {[%emt 0:00:01]} 17. Re1 {[%emt 0:00:00]} Ba4 {[%emt 0:00:22]} 18. Qd3 {[%emt 0:00:11]} g6 {[%emt 0:00:01]} 19. Rb2 {[%emt 0:00:08]} Kg7 {[%emt 0:00:01]} 20. h4 {[%emt 0:00:34]} Be8 {[%emt 0:01:03]} 21. h5 {[%emt 0:00:19]} Nd5 {[%emt 0:00:02]} 22. Qe4 {[%emt 0:02:54]} Rh8 {[%emt 0:00:28]} 23. hxg6 {[%emt 0:00:24]} fxg6 {[%emt 0:00:02]} 24. Qg4 {[%emt 0:00:01]} Bf7 {[%emt 0:00:09]} 25. Be4 {[%emt 0:00:04]} Rb8 {[%emt 0:00:08]} 26. b5 {[%emt 0:00:15]} Rb6 {[%emt 0:00:52]} 27. Ra2 {[%emt 0:00:22]} Rxb5 {[%emt 0:02:24]} 28. Rxa7 {[%emt 0:00:02]} g5 {[%emt 0:00:00]} 29. Qg3 {[%emt 0:00:23]} Rb3 {[%emt 0:00:31]} 30. Bxd5 {[%emt 0:00:14]} Qxd5 {[%emt 0:00:00]} 31. Rxc7 {[%emt 0:00:02]} Bd8 {[%emt 0:00:11]} 32. Rc5 {[%emt 0:00:12]} Qb7 {[%emt 0:00:03]} 33. d5 {[%emt 0:00:17]} Qb4 {[%emt 0:00:36]} 34. dxe6 {[%emt 0:00:50]} Bxe6 {[%emt 0:00:30]} 35. Bxg5 {[%emt 0:00:35]} hxg5 {[%emt 0:00:14]} 36. Rec1 {[%emt 0:00:01]} Qxc5 {[%emt 0:00:04]} 0-1

[Event "CCT Julius Baer-D2 2024"]
[Site "Online"]
[Date "2024.09.28"]
[Round "2"]
[White "Madaminov, Mukhiddin"]
[Black "So, Wesley"]
[Result "1/2-1/2"]
[ECO "C50"]
[WhiteElo "2512"]
[BlackElo "2752"]
[Annotator "TA"]
[PlyCount "141"]
[EventDate "2024.09.25"]
[EventType "swiss"]
[EventCountry "NET"]
[SourceTitle "playchess.com"]
[Source "ChessBase"]
[SourceQuality "1"]
[TimeControl "600+2"]

{[%evp 77,140,-187,-194,-194,-171,-171,-171,-171,-171,-171,-171,-1117,-1146,-1220,-1197,-7596,-7400,-6874,-6609,-6168,0,-5608,-5233,-5475,-5410,-5177,-5043,-2087,-4566,-2008,-1917,-5512,-3868,-5094,-5106,-5106,-5087,-5057,-1118,-1106,-964,-816,0,-29959,-29960,-29954,0,0,0,0,0,0,0,0,0,0,0,0,0,0,0,0,0,0,0]} 1. e4 {[%emt 0:00:02] Marin,Mihail} e5 {[%emt 0:00:03]} 2. Nf3 {[%emt 0:00:01]} Nc6 {[%emt 0:00:00]} 3. Bc4 {[%emt 0:00:01]} Bc5 {[%emt 0:00:01]} 4. Nc3 {[%emt 0:00:01]} Nf6 {[%emt 0:00:02]} 5. d3 {[%emt 0:00:00]} O-O {[%emt 0:00:04]} 6. O-O {[%emt 0:00:08]} h6 {[%emt 0:00:22]} 7. a3 {[%emt 0:00:04]} Re8 {[%emt 0:00:02] C50: Hungarian Defence and Giuoco Pianissimo.} 8. Be3 {[%emt 0:00:24]} Nd4 $146 {[%emt 0:00:04]} ({Predecessor:} 8... Bxe3 9. fxe3 d6 10. Nh4 Be6 11. Nf5 Bxc4 12. dxc4 Kh7 13. Qf3 Nb8 14. Nxh6 Kxh6 15. Qh3+ Kg6 16. Rf3 Nh5 17. Rf5 Nf6 18. Qh4 {1-0 Anand,V (2784)-Aronian,L (2792) Zuerich Chess Challenge Rapid 5th 2016 (1)}) 9. b4 {[%emt 0:00:57]} Bb6 {[%emt 0:00:52]} 10. Bxd4 {[%emt 0:00:25]} exd4 {[%emt 0:00:01]} 11. Nd5 {[%emt 0:00:37]} Nxd5 {[%emt 0:00:02]} 12. Bxd5 {[%emt 0:00:00]} c6 {[%emt 0:00:03]} 13. Bc4 {[%emt 0:00:27]} d5 {[%emt 0:00:03]} 14. exd5 {[%emt 0:00:00]} cxd5 {[%emt 0:00:02]} 15. Bb5 {[%emt 0:00:06]} Re7 {[%emt 0:00:01]} 16. h3 {[%emt 0:00:03]} Bd7 {[%emt 0:01:27]} 17. Bxd7 {[%emt 0:00:16]} Qxd7 {[%emt 0:00:00]} 18. Re1 {[%emt 0:00:01]} Rxe1+ {[%emt 0:00:05]} 19. Qxe1 {[%emt 0:00:03]} Qa4 {[%emt 0:00:21]} 20. Qe7 {[%emt 0:00:18]} Qxc2 {[%emt 0:00:11]} 21. Ne5 {[%emt 0:00:32]} Qc7 {[%emt 0:00:21]} 22. Qxc7 {[%emt 0:00:15]} Bxc7 {[%emt 0:00:00]} 23. Nf3 {[%emt 0:00:01]} Rc8 {[%emt 0:00:53]} 24. Kf1 {[%emt 0:00:23]} Bd8 {[%emt 0:00:20]} 25. Re1 {[%emt 0:00:41]} Bf6 {[%emt 0:00:07]} 26. Ne5 {[%emt 0:00:01]} g6 {[%emt 0:00:31]} 27. Nd7 {[%emt 0:00:50]} Bg5 {[%emt 0:00:21]} 28. g3 {[%emt 0:00:23]} Rc7 {[%emt 0:00:16]} 29. Re8+ {[%emt 0:01:41]} Kg7 {[%emt 0:00:01]} 30. Ne5 {[%emt 0:00:00]} Bf6 {[%emt 0:00:16]} 31. Ng4 {[%emt 0:01:22]} Rc3 {[%emt 0:00:32]} 32. a4 {[%emt 0:00:03]} Rxd3 {[%emt 0:00:32]} 33. Rb8 {[%emt 0:00:09]} b6 {[%emt 0:00:08]} 34. Rb7 {[%emt 0:00:02]} Rb3 {[%emt 0:00:04]} 35. Rd7 {[%emt 0:00:20]} h5 {[%emt 0:00:30]} 36. Nxf6 {[%emt 0:00:02]} Kxf6 {[%emt 0:00:00]} 37. b5 {[%emt 0:00:00]} d3 {[%emt 0:00:48]} 38. Ke1 {[%emt 0:00:02]} Ke5 {[%emt 0:00:16]} 39. Rxf7 {[%emt 0:00:01]} (39. Rxa7 $17 f5 40. Ra6) 39... Kd4 {[%emt 0:00:19]} 40. Rxa7 {[%emt 0:00:01]} Rb1+ {[%emt 0:00:01]} 41. Kd2 {[%emt 0:00:01]} Rb2+ {[%emt 0:00:00]} 42. Kd1 {[%emt 0:00:02]} Rxf2 {[%emt 0:00:02]} 43. Rb7 {[%emt 0:00:02]} Rf6 {[%emt 0:00:11]} 44. Kd2 $2 {[%emt 0:00:01]} (44. h4) 44... g5 $19 {[%emt 0:00:04]} (44... Rf2+ $2 45. Kd1 $17) 45. Rb8 {[%emt 0:00:11]} g4 {[%emt 0:00:02]} 46. hxg4 {[%emt 0:00:02]} hxg4 {[%emt 0:00:01]} (46... Rf2+ 47. Kd1 $15) 47. Rb7 {[%emt 0:00:08]} Rh6 {[%emt 0:00:02]} 48. Rb8 {[%emt 0:00:03]} Rf6 {[%emt 0:00:18]} 49. Rb7 $1 {[%emt 0:00:01]} Re6 {[%emt 0:00:08]} 50. Rb8 {[%emt 0:00:04]} Rh6 {[%emt 0:00:02]} 51. Rb7 {[%emt 0:00:02]} Rh2+ {[%emt 0:00:03]} 52. Kd1 {[%emt 0:00:00]} Ke3 {[%emt 0:00:02]} (52... Ra2 $142 53. Rxb6 Rxa4) 53. Re7+ $19 {[%emt 0:00:01] [#]} Kf3 $1 {[%emt 0:00:01]} 54. Re6 {[%emt 0:00:21]} Ra2 {[%emt 0:00:01]} 55. Rxb6 {[%emt 0:00:01]} Rxa4 {[%emt 0:00:03]} 56. Rb8 {[%emt 0:00:06]} Kxg3 {[%emt 0:00:14]} 57. b6 {[%emt 0:00:00]} Ra2 {[%emt 0:00:08]} (57... Rb4 $142 58. Kd2 Rb3) 58. b7 $19 {[%emt 0:00:04]} Rb2 {[%emt 0:00:01]} 59. Kc1 {[%emt 0:00:01]} d2+ $2 {[%emt 0:00:13]} (59... Rc2+ $19 60. Kd1 Rc7 (60... Rb2 $2 61. Ke1 $19)) 60. Kd1 $2 {[%emt 0:00:01][%mdl 8192]} (60. Kxb2 $11 d1=Q (60... d1=B 61. Rc8 Kg2 62. b8=Q Kf3 63. Qe5 d4 64. Qxd4 Kg2 65. Qxd1) 61. Rc8 Qe2+ 62. Kc1 Qe1+ 63. Kc2 Qe4+ 64. Kc1 Qe3+ 65. Kc2 Qe4+ 66. Kc1 Qf4+ 67. Kc2 Qa4+ 68. Kc1 Qf4+ 69. Kc2 Qe4+) 60... d4 {[%emt 0:00:07]} 61. Ke2 {[%emt 0:00:00] [#]} d3+ $2 {[%emt 0:00:04]} (61... d1=R+ $1 {mates} 62. Kxd1 d3 63. Kc1 Rc2+ 64. Kd1 Rc7 (64... Rb2 $2 65. Ke1 $19) 65. Ke1 Rf7 66. Kd2 Kf3 67. Kxd3 g3 68. Re8 Rd7+ (68... Rxb7 69. Rf8+ Kg2 70. Rg8 $19) 69. Kc4 Rxb7 70. Rf8+ Kg2 71. Rg8 Rh7 72. Rg6 Kh2 73. Kc5 g2 74. Kd4 Rh4+ (74... g1=B+ 75. Kc4 $15) 75. Ke5 g1=Q (75... g1=B 76. Ra6 $15) 76. Rxg1 Kxg1 77. Kf6 Re4 78. Kf5 Re2 79. Kg4 Rf2 80. Kg3 Kf1 81. Kg4 Kg2 82. Kh4 Kf3 83. Kg5 Kg3 84. Kh6 Kf4 85. Kg6 Kg4 86. Kh6 Kf5 87. Kg7 Kg5 88. Kh7 Kf6 89. Kg8 Rh2 90. Kf8 Rh8#) 62. Kd1 $1 $11 {[%emt 0:00:02]} Kg2 {[%emt 0:00:07]} 63. Rg8 {[%emt 0:00:03]} Rxb7 {[%emt 0:00:03]} 64. Rxg4+ {[%emt 0:00:00]} Kf3 {[%emt 0:00:01]} 65. Rg8 $1 {[%emt 0:00:01]} Ke3 {[%emt 0:00:04]} 66. Re8+ {[%emt 0:00:01]} Kd4 {[%emt 0:00:00]} 67. Rd8+ {[%emt 0:00:00]} Kc3 {[%emt 0:00:01]} 68. Rc8+ {[%emt 0:00:01]} Kd4 {[%emt 0:00:01]} 69. Rd8+ {[%emt 0:00:01]} Kc3 {[%emt 0:00:01]} 70. Rc8+ {[%emt 0:00:00]} Kd4 {[%emt 0:00:01]} 71. Rd8+ {[%emt 0:00:01]} 1/2-1/2